fUSD/lending_fUSD_20240201
["ID","MTS","AMOUNT","RATE_DAILY","PERIOD"]
[313152929,1706823046950,-3000.0,0.00027397,2]
[313152930,1706823046959,-3000.0,0.00027397,2]
[313152931,1706823046968,-3000.0,0.00027397,2]
[313152932,1706823046978,-3000.0,0.00027397,2]
[313152933,1706823046987,-3000.0,0.00027397,2]
[313152934,1706823046995,-3000.0,0.00027397,2]
[313152935,1706823047005,-3000.0,0.00027397,2]
[313152936,1706823047014,-3000.0,0.00027397,2]
[313152937,1706823047139,-3000.0,0.00027397,2]
[313152938,1706823047166,-3000.0,0.00027397,2]
[313152939,1706823047176,-151.7,0.00027397,2]
[313152940,1706823047186,-238.81,0.00027397,2]
[313152941,1706823047195,-2313.87,0.00027397,2]
[313152942,1706823047204,-368.7,0.00027397,2]
[313152943,1706823047214,-13592.21,0.00027397,2]
[313152944,1706823047223,-158.42,0.00027397,2]
[313152945,1706823047232,-31836.56,0.00027397,2]
[313152946,1706823047242,-500.0,0.000274,2]
[313152947,1706823047251,-155.39208783,0.000275,2]
[313152948,1706823047261,-238.81,0.00027541,2]
[313152949,1706823047270,-2313.87,0.00027541,2]
[313152950,1706823047279,-368.7,0.00027541,2]
[313152951,1706823047289,-13592.21,0.00027556,2]
[313152952,1706823047298,-500.0,0.00027556,2]
[313152953,1706823047308,-328.0,0.00027569,2]
[313152954,1706823047318,-293.0,0.00027579,2]
[313152955,1706823047327,-1487.03,0.00027629,2]
[313152956,1706823047336,-238.81,0.00027686,2]
[313152957,1706823047346,-2313.87,0.00027686,2]
[313152958,1706823047355,-368.7,0.00027686,2]
[313152959,1706823047364,-151.7,0.00027702,2]
[313152960,1706823047373,-13592.21,0.00027714,2]
[313152961,1706823047382,-840.0,0.00027714,2]
[313152962,1706823047392,-158.42,0.00027789,2]
[313152963,1706823047402,-466.12398137,0.0002779,2]
[313152964,1706823047411,-238.81,0.0002783,2]
[313152965,1706823047420,-2313.87,0.0002783,2]
[313152966,1706823047429,-368.7,0.0002783,2]
[313152967,1706823047439,-618.53531261,0.00027839,2]
[313152968,1706823047448,-1324.0493566,0.00027839,2]
[313152969,1706823047457,-13592.21,0.00027872,2]
[313152970,1706823047466,-500.0,0.0002788,2]
[313152971,1706823047475,-500.0,0.0002788,2]
[313152972,1706823047484,-500.0,0.0002788,2]
[313152973,1706823047493,-500.0,0.0002788,2]
[313152974,1706823047502,-500.0,0.0002788,2]
[313152975,1706823047511,-500.0,0.0002788,2]
[313152976,1706823047520,-500.0,0.0002788,2]
[313152977,1706823047529,-500.0,0.0002788,2]
[313152978,1706823047538,-500.0,0.0002788,2]
[313152979,1706823047547,-500.0,0.0002788,2]
[313152980,1706823047556,-500.0,0.0002788,2]
[313152981,1706823047565,-500.0,0.0002788,2]
[313152982,1706823047574,-500.0,0.0002788,2]
[313152983,1706823047583,-500.0,0.0002788,2]
[313152984,1706823047593,-500.0,0.0002788,2]
[313152985,1706823047602,-500.0,0.0002788,2]
[313152986,1706823047611,-500.0,0.0002788,2]
[313152987,1706823047620,-500.0,0.0002788,2]
[313152988,1706823047629,-500.0,0.0002788,2]
[313152989,1706823047640,-500.0,0.0002788,2]
[313152990,1706823047649,-500.0,0.0002788,2]
[313152991,1706823047658,-500.0,0.0002788,2]
[313152992,1706823047667,-500.0,0.0002788,2]
[313152993,1706823047676,-500.0,0.0002788,2]
[313152994,1706823047685,-500.0,0.0002788,2]
[313152995,1706823047694,-500.0,0.0002788,2]
[313152996,1706823047703,-500.0,0.0002788,2]
[313152997,1706823047713,-500.0,0.0002788,2]
[313152998,1706823047722,-500.0,0.0002788,2]
[313152999,1706823047731,-500.0,0.0002788,2]
[313153000,1706823047740,-500.0,0.0002788,2]
[313153001,1706823047749,-500.0,0.0002788,2]
[313153002,1706823047758,-500.0,0.0002788,2]
[313153003,1706823047767,-500.0,0.0002788,2]
[313153004,1706823047775,-500.0,0.0002788,2]
[313153005,1706823047785,-500.0,0.0002788,2]
[313153006,1706823047793,-500.0,0.0002788,2]
[313153007,1706823047802,-500.0,0.0002788,2]
[313153008,1706823047811,-500.0,0.0002788,2]
[313153009,1706823047820,-500.0,0.0002788,2]
[313153010,1706823047829,-500.0,0.0002788,2]
[313153011,1706823047838,-500.0,0.0002788,2]
[313153012,1706823047847,-500.0,0.0002788,2]
[313153013,1706823047856,-500.0,0.0002788,2]
[313153014,1706823047865,-500.0,0.0002788,2]
[313153015,1706823047875,-500.0,0.0002788,2]
[313153016,1706823047884,-407.84,0.0002788,2]
[313153017,1706823047894,-150.0,0.00027945,2]
[313153018,1706823047903,-500.0,0.00027951,2]
[313153019,1706823047912,-153.55670088,0.00027961,2]
[313153020,1706823047923,-238.81,0.00027974,2]
[313153021,1706823047935,-2313.87,0.00027974,2]
[313153022,1706823047944,-368.7,0.00027974,2]
[313153023,1706823047954,-690.73183614,0.00028,2]
[313153024,1706823047962,-225.30078436,0.00028,2]
[313153025,1706823047973,-2803.72529537,0.00028,2]
[313153026,1706823047983,-200.0,0.00028,2]
[313153027,1706823047993,-151.7,0.00028006,2]
[313153028,1706823048004,-13592.21,0.0002803,2]
[313153029,1706823048019,-238.81,0.00028118,2]
[313153030,1706823048029,-2313.87,0.00028118,2]
[313153031,1706823048040,-368.7,0.00028118,2]
[313153032,1706823048050,-158.42,0.0002818,2]
[313153033,1706823048062,-13592.21,0.00028189,2]
[313153034,1706823048073,-238.81,0.00028262,2]
[313153035,1706823048083,-2313.87,0.00028262,2]
[313153036,1706823048094,-368.7,0.00028262,2]
[313153037,1706823048105,-167.0,0.00028307,2]
[313153038,1706823048115,-167.21,0.00028307,2]
[313153039,1706823048125,-151.7,0.0002831,2]
[313153040,1706823048134,-500.0,0.00028346,2]
[313153041,1706823048151,-13592.21,0.00028347,2]
[313153042,1706823048161,-238.81,0.00028407,2]
[313153043,1706823048173,-2313.87,0.00028407,2]
[313153044,1706823048183,-368.7,0.00028407,2]
[313153045,1706823048193,-1487.03,0.00028485,2]
[313153046,1706823048203,-150.0,0.00028493,2]
[313153047,1706823048212,-13592.21,0.00028505,2]
[313153048,1706823048222,-238.81,0.00028551,2]
[313153049,1706823048231,-2313.87,0.00028551,2]
[313153050,1706823048242,-368.7,0.00028551,2]
[313153051,1706823048251,-158.42,0.00028571,2]
[313153052,1706823048262,-151.7,0.00028615,2]
[313153053,1706823048272,-1207.25,0.0002863,2]
[313153054,1706823048281,-13592.21,0.00028664,2]
[313153055,1706823048291,-238.81,0.00028695,2]
[313153056,1706823048300,-2313.87,0.00028695,2]
[313153057,1706823048310,-368.7,0.00028695,2]
[313153058,1706823048319,-205.0,0.00028696,12]
[313153059,1706823048328,-500.0,0.00028741,2]
[313153060,1706823048338,-155.0,0.00028767,2]
[313153061,1706823048347,-261.16058011,0.00028799,2]
[313153062,1706823048356,-200.0,0.000288,2]
[313153063,1706823048366,-5520.969602,0.000288,2]
[313153064,1706823048375,-1979.499118,0.000288,2]
[313153065,1706823048385,-465.055394,0.000288,2]
[313153066,1706823048397,-300.0,0.000288,2]
[313153067,1706823048406,-153.55670088,0.00028804,2]
[313153068,1706823048415,-13592.21,0.00028822,2]
[313153069,1706823048425,-238.81,0.00028839,2]
[313153070,1706823048434,-2313.87,0.00028839,2]
[313153071,1706823048443,-368.7,0.00028839,2]
[313153072,1706823048453,-204.7712179,0.00028878,2]
[313153073,1706823048462,-203.22221247,0.00028878,2]
[313153074,1706823048471,-630.041593,0.00028879,2]
[313153075,1706823048480,-56163.11743676,0.0002888,2]
[313153076,1706823048490,-19191.13780264,0.000289,2]
[313153077,1706823048499,-157.2734,0.000289,2]
[313153078,1706823048507,-151.7,0.00028919,2]
[313153079,1706823048516,-158.42,0.00028963,2]
[313153080,1706823048525,-238.81,0.00028983,2]
[313153081,1706823048534,-2313.87,0.00028983,2]
[313153082,1706823048543,-368.7,0.00028983,2]
[313153083,1706823048552,-157.27115329,0.00029,2]
[313153084,1706823048561,-315.17377516,0.00029,2]
[313153085,1706823048570,-327.28889716,0.00029,2]
[313153086,1706823048579,-155.0,0.00029,2]
[313153087,1706823048588,-1350.0,0.00029,3]
[313153088,1706823048596,-150.0,0.00029041,2]
[313153089,1706823048605,-238.81,0.00029128,2]
[313153090,1706823048614,-2313.87,0.00029128,2]
[313153091,1706823048623,-368.7,0.00029128,2]
[313153092,1706823048632,-500.0,0.00029136,2]
[313153093,1706823048644,-430.94,0.0002921,2]
[313153094,1706823048654,-151.7,0.00029224,2]
[313153095,1706823048663,-238.81,0.00029272,2]
[313153096,1706823048672,-2313.87,0.00029272,2]
[313153097,1706823048682,-368.7,0.00029272,2]
[313153098,1706823048692,-200.0,0.000293,2]
[313153099,1706823048702,-1487.03,0.00029341,2]
[313153100,1706823048711,-158.42,0.00029354,2]
[313153101,1706823048720,-238.81,0.00029416,2]
[313153102,1706823048729,-2313.87,0.00029416,2]
[313153103,1706823048738,-368.7,0.00029416,2]
[313153104,1706823048747,-157.48445838,0.000295,3]
[313153105,1706823048756,-151.7,0.00029528,2]
[313153106,1706823048765,-500.0,0.00029531,2]
[313153107,1706823048774,-238.81,0.0002956,2]
[313153108,1706823048783,-2313.87,0.0002956,2]
[313153109,1706823048792,-368.7,0.0002956,2]
[313153110,1706823048801,-150.0,0.00029589,2]
[313153111,1706823048809,-1890.22,0.00029589,2]
[313153112,1706823048818,-153.55670088,0.00029648,2]
[313153113,1706823048827,-323.84015861,0.00029688,2]
[313153114,1706823048836,-238.81,0.00029704,2]
[313153115,1706823048845,-2313.87,0.00029704,2]
[313153116,1706823048854,-368.7,0.00029704,2]
[313153117,1706823048863,-158.42,0.00029746,2]
[313153118,1706823048871,-176.02968704,0.000298,2]
[313153119,1706823048880,-200.0,0.000298,2]
[313153120,1706823048890,-151.7,0.00029833,2]
[313153121,1706823048899,-238.81,0.00029849,2]
[313153122,1706823048908,-2313.87,0.00029849,2]
[313153123,1706823048917,-368.7,0.00029849,2]
[313153124,1706823048927,-49146.24584534,0.000299,2]
[313153125,1706823048941,-4664.92935128,0.0002996,2]
[313153126,1706823048950,-238.81,0.00029993,2]
[313153127,1706823048959,-2313.87,0.00029993,2]
[313153128,1706823048969,-368.7,0.00029993,2]
[313153129,1706823048978,-150.0,0.00029998,2]
[313153130,1706823048988,-150.0,0.00029998,2]
[313153131,1706823048997,-150693.156427,0.00029999,2]
[313153132,1706823049007,-203.8884732,0.0003,4]
[313153133,1706823049016,-9669.73208063,0.0003,2]
[313153134,1706823049026,-155.84374487,0.0003,4]
[313153135,1706823049035,-155.267871,0.0003,4]
[313153136,1706823049045,-583.92214289,0.0003,2]
[313153137,1706823049054,-1810.6484529,0.0003,4]
[313153138,1706823049064,-3610.83237743,0.0003,4]
[313153139,1706823049073,-19239.82209154,0.0003,4]
[313153140,1706823049083,-911.10719302,0.0003,4]
[313153141,1706823049092,-823.5182274,0.0003,4]
[313153142,1706823049102,-8866.1862363,0.0003,4]
[313153143,1706823049111,-156.16994493,0.0003,4]
[313153144,1706823049121,-156.01033673,0.0003,4]
[313153145,1706823049130,-694.13273302,0.0003,2]
[313153146,1706823049140,-155.0,0.0003,2]
[313153147,1706823049149,-260.00913145,0.0003,4]
[313153148,1706823049158,-363.11693361,0.0003,4]
[313153149,1706823049167,-174.78777517,0.0003,4]
[313153150,1706823049176,-210.34687424,0.0003,4]
[313153151,1706823049186,-468.77315428,0.0003,4]
[313153152,1706823049196,-150.0,0.0003,5]
[313153153,1706823049205,-331288.52323423,0.0003,4]
[313153154,1706823049214,-480.0,0.0003,2]
[313153155,1706823049223,-3032.71692112,0.0003,30]
[313153156,1706823049232,-12893.40775033,0.0003,2]
[313153157,1706823049241,-3000.0,0.0003,2]
[313153158,1706823049250,-500.0,0.0003,2]
[313153159,1706823049259,-155.0,0.0003,2]
[313153160,1706823049268,-200.0,0.0003,2]
[313153161,1706823049277,-1636.79999,0.0003,2]
[313153162,1706823049286,-1636.79999,0.0003,2]
[313153163,1706823049295,-1636.79999,0.0003,2]
[313153164,1706823049304,-1636.79999,0.0003,2]
[313153165,1706823049313,-1636.79999,0.0003,2]
[313153166,1706823049323,-1636.79999,0.0003,2]
[313153167,1706823049332,-1000.0,0.0003,2]
[313153168,1706823049341,-1000.0,0.0003,2]
[313153169,1706823049350,-3000.0,0.0003001,2]
[313153170,1706823049359,-3000.0,0.0003002,2]
[313153171,1706823049368,-3000.0,0.0003003,2]
[313153172,1706823049377,-3000.0,0.0003004,2]
[313153173,1706823049387,-3000.0,0.0003005,2]
[313153174,1706823049399,-3000.0,0.0003006,2]
[313153175,1706823049409,-3000.0,0.0003007,2]
[313153176,1706823049418,-3000.0,0.0003008,2]
[313153177,1706823049427,-2916.0,0.00030083,2]
[313153178,1706823049436,-1102.593,0.00030083,2]
[313153179,1706823049446,-949.0,0.00030083,2]
[313153180,1706823049454,-839.0,0.00030083,2]
[313153181,1706823049463,-1033.0,0.00030083,2]
[313153182,1706823049472,-3000.0,0.0003009,2]
[313153183,1706823049481,-3000.0,0.000301,2]
[313153184,1706823049490,-3000.0,0.0003011,2]
[313153185,1706823049498,-3000.0,0.0003012,2]
[313153186,1706823049507,-3000.0,0.0003013,2]
[313153187,1706823049516,-238.81,0.00030137,2]
[313153188,1706823049525,-2313.87,0.00030137,2]
[313153189,1706823049534,-368.7,0.00030137,2]
[313153190,1706823049542,-151.7,0.00030137,2]
[313153191,1706823049551,-150.0,0.00030137,2]
[313153192,1706823049560,-13594.6,0.00030137,2]
[313153193,1706823049569,-155.0,0.00030137,2]
[313153194,1706823049578,-150.0,0.00030137,2]
[313153195,1706823049588,-158.42,0.00030137,2]
[313153196,1706823049597,-13807.72512439,0.00030137,2]
[313153197,1706823049606,-3000.0,0.0003014,2]
[313153198,1706823049615,-3000.0,0.0003015,2]
[313153199,1706823049624,-3000.0,0.0003016,2]
[313153200,1706823049633,-3000.0,0.0003017,2]
[313153201,1706823049652,-236.0,0.00030176,2]
[313153202,1706823049663,-203.645,0.00030176,2]
[313153203,1706823049672,-572.055,0.00030176,2]
[313153204,1706823049681,-427.0,0.00030176,2]
[313153205,1706823049690,-1941.0,0.00030176,2]
[313153206,1706823049699,-860.0,0.00030176,2]
[313153207,1706823049708,-150.0,0.00030176,2]
[313153208,1706823049718,-320.0,0.00030176,2]
[313153209,1706823049727,-210.0,0.00030176,2]
[313153210,1706823049736,-8130.0,0.00030176,2]
[313153211,1706823049745,-1352.0,0.00030176,2]
[313153212,1706823049755,-559.087,0.00030176,2]
[313153213,1706823049764,-7384.0,0.00030176,2]
[313153214,1706823049774,-2281.0,0.00030176,2]
[313153215,1706823049783,-19773.0,0.00030176,2]
[313153216,1706823049792,-3000.0,0.0003018,2]
[313153217,1706823049801,-3000.0,0.0003019,2]
[313153218,1706823049810,-3000.0,0.000302,2]
[313153219,1706823049819,-3000.0,0.0003021,2]
[313153220,1706823049828,-3000.0,0.0003022,2]
[313153221,1706823049838,-3000.0,0.0003023,2]
[313153222,1706823049847,-3000.0,0.0003024,2]
[313153223,1706823049856,-3000.0,0.0003025,2]
[313153224,1706823049866,-3000.0,0.0003026,2]
[313153225,1706823049875,-3372.982918,0.0003027,2]
[313153226,1706823049884,-1207.25,0.00030274,2]
[313153227,1706823049895,-200.0,0.000303,2]
[313153228,1706823049905,-328.0,0.00030326,2]
[313153229,1706823049915,-411.0,0.00030337,2]
[313153230,1706823049925,-840.0,0.00030485,2]
[313153231,1706823049937,-153.55670088,0.00030491,2]
[313153232,1706823049945,-1082.69375277,0.00030625,2]
[313153233,1706823049954,-150.0,0.00030685,2]
[313153234,1706823049964,-150.0,0.00030714,2]
[313153235,1706823049974,-500.0,0.00030741,2]
[313153236,1706823049985,-200.0,0.000308,3]
[313153237,1706823049994,-219.15,0.00030906,2]
[313153238,1706823050003,-3370.11090825,0.00031,2]
[313153239,1706823050011,-371.07036043,0.00031,2]
[313153240,1706823050022,-208.48231056,0.00031,4]
[313153241,1706823050033,-1254.51052629,0.00031,7]
[313153242,1706823050042,-3068.6130046,0.00031,4]
[313153243,1706823050052,-450.0,0.00031,3]
[313153244,1706823050061,-155.0,0.00031,2]
[313153245,1706823050071,-1400.0,0.00031,3]
[313153246,1706823050081,-150.0,0.00031233,2]
[313153247,1706823050090,-3430.78962876,0.0003125,5]
[313153248,1706823050100,-200.0,0.0003125,2]
[313153249,1706823050110,-1582.16413237,0.0003125,4]
[313153250,1706823050119,-5633.68676721,0.0003125,2]
[313153251,1706823050129,-1969.43500673,0.0003125,2]
[313153252,1706823050140,-5859.40530738,0.0003125,4]
[313153253,1706823050154,-41.93465813,0.0003125,120]
[313153254,1706823050163,-150.0,0.00031291,2]
[313153255,1706823050173,-159.10456797,0.000313,2]
[313153256,1706823050183,-152.59630638,0.0003132,2]
[313153257,1706823050193,-153.55670088,0.00031334,2]
[313153258,1706823050203,-495.00957265,0.000314,30]
[313153259,1706823050213,-4635.0033881,0.0003143,4]
[313153260,1706823050223,-430.94,0.00031474,2]
[313153261,1706823050232,-1000.0,0.000315,2]
[313153262,1706823050242,-1147.82,0.00031507,2]
[313153263,1706823050251,-403.35,0.00031507,2]
[313153264,1706823050261,-403.35,0.00031507,2]
[313153265,1706823050271,-403.35,0.00031507,2]
[313153266,1706823050280,-155.0,0.00031507,2]
[313153267,1706823050289,-180.0,0.00031644,2]
[313153268,1706823050299,-163.18,0.00031644,2]
[313153269,1706823050308,-15504.87009723,0.000317,2]
[313153270,1706823050318,-203186.1665778,0.00031778,2]
[313153271,1706823050327,-150.0,0.00031781,2]
[313153272,1706823050336,-150.0,0.00031799,2]
[313153273,1706823050345,-150.0,0.00031799,2]
[313153274,1706823050354,-311975.521167,0.000318,3]
[313153275,1706823050547,-150.0,0.00031867,2]
[313153276,1706823050557,-500.0,0.00031951,2]
[313153277,1706823050566,-13153.75319453,0.00032,4]
[313153278,1706823050575,-155.0,0.00032,4]
[313153279,1706823050585,-155.0,0.00032,2]
[313153280,1706823050598,-205.0,0.00032174,17]
[313153281,1706823050607,-153.55670088,0.00032178,2]
[313153282,1706823050617,-166.38526196,0.00032329,2]
[313153283,1706823050627,-413.98774621,0.000324,2]
[313153284,1706823050636,-413.98774619,0.000324,2]
[313153285,1706823050646,-413.98774619,0.000324,2]
[313153286,1706823050656,-413.98774619,0.000324,2]
[313153287,1706823050665,-413.98774619,0.000324,2]
[313153288,1706823050675,-413.98774619,0.000324,2]
[313153289,1706823050685,-413.98774619,0.000324,2]
[313153290,1706823050695,-150.0,0.00032444,2]
[313153291,1706823050705,-16581.84799344,0.000325,3]
[313153292,1706823050715,-1000.0,0.000325,2]
[313153293,1706823050725,-466.12398137,0.0003268,2]
[313153294,1706823050734,-618.53531261,0.00032777,2]
[313153295,1706823050744,-1324.0493566,0.00032777,2]
[313153296,1706823050753,-958.81956335,0.0003278,5]
[313153297,1706823050763,-115706.14102846,0.000328,2]
[313153298,1706823050772,-293.98418024,0.00032876,2]
[313153299,1706823050782,-317.35,0.00032877,2]
[313153300,1706823050791,-37169.63,0.00032877,2]
[313153301,1706823050800,-500.0,0.00032877,2]
[313153302,1706823050809,-55400.34,0.00032877,2]
[313153303,1706823050819,-500.0,0.00032877,2]
[313153304,1706823050828,-155.0,0.00032877,2]
[313153305,1706823050838,-375.0,0.000329,2]
[313153306,1706823050847,-2000.0,0.00033,5]
[313153307,1706823050856,-12445.79503796,0.00033,2]
[313153308,1706823050864,-155.0,0.00033,2]
[313153309,1706823050873,-1450.0,0.00033,3]
[313153310,1706823050883,-150.0,0.00033021,2]
[313153311,1706823050893,-153.55670088,0.00033021,2]
[313153312,1706823050902,-328.0,0.00033082,2]
[313153313,1706823050911,-2916.0,0.00033083,2]
[313153314,1706823050923,-949.0,0.00033083,2]
[313153315,1706823050933,-839.0,0.00033083,2]
[313153316,1706823050946,-1033.0,0.00033083,2]
[313153317,1706823050956,-500.0,0.0003316,2]
[313153318,1706823050965,-236.0,0.00033176,2]
[313153319,1706823050975,-427.0,0.00033176,2]
[313153320,1706823050985,-1941.0,0.00033176,2]
[313153321,1706823050994,-860.0,0.00033176,2]
[313153322,1706823051005,-150.0,0.00033176,2]
[313153323,1706823051014,-320.0,0.00033176,2]
[313153324,1706823051024,-210.0,0.00033176,2]
[313153325,1706823051035,-8130.0,0.00033176,2]
[313153326,1706823051044,-7384.0,0.00033176,2]
[313153327,1706823051054,-2281.0,0.00033176,2]
[313153328,1706823051064,-19773.0,0.00033176,2]
[313153329,1706823051073,-840.0,0.00033257,2]
[313153330,1706823051083,-157.57078744,0.000334,4]
[313153331,1706823051092,-1000.0,0.000334,2]
[313153332,1706823051102,-150.0,0.00033598,2]
[313153333,1706823051112,-430.94,0.00033737,2]
[313153334,1706823051121,-153.55670088,0.00033865,2]
[313153335,1706823051131,-765.43256456,0.00034,4]
[313153336,1706823051141,-150.0,0.00034175,2]
[313153337,1706823051150,-155.0,0.00034247,2]
[313153338,1706823051159,-500.0,0.0003437,2]
[313153339,1706823051169,-150.0,0.00034548,10]
[313153340,1706823051178,-261.16058011,0.00034698,2]
[313153341,1706823051188,-7752.43,0.000347,2]
[313153342,1706823051198,-153.55670088,0.00034708,2]
[313153343,1706823051208,-150.0,0.00034751,2]
[313153344,1706823051218,-78620.63733662,0.00034798,2]
[313153345,1706823051227,-13807.72512439,0.00034877,2]
[313153346,1706823051237,-176930.20612171,0.0003488,2]
[313153347,1706823051247,-9114.1661631,0.000349,4]
[313153348,1706823051256,-2047.72134228,0.000349,2]
[313153349,1706823051266,-2047.72134219,0.000349,2]
[313153350,1706823051275,-2047.72134219,0.000349,2]
[313153351,1706823051285,-2047.72134219,0.000349,2]
[313153352,1706823051294,-2047.72134219,0.000349,2]
[313153353,1706823051304,-2047.72134219,0.000349,2]
[313153354,1706823051313,-2047.72134219,0.000349,2]
[313153355,1706823051322,-2047.72134219,0.000349,2]
[313153356,1706823051332,-150.0,0.00034951,2]
[313153357,1706823051341,-150.0,0.00034951,2]
[313153358,1706823051351,-91883.6903578,0.00034952,2]
[313153359,1706823051360,-31208.4571973,0.00034952,2]
[313153360,1706823051369,-8990.3184139,0.00034952,2]
[313153361,1706823051378,-205098.3518222,0.00034976,2]
[313153362,1706823051387,-207010.5370667,0.00034976,2]
[313153363,1706823051397,-87635.4848921,0.00034976,2]
[313153364,1706823051406,-29765.5467317,0.00034976,2]
[313153365,1706823051416,-9539.9448672,0.00034976,2]
[313153366,1706823051425,-96654.07587073,0.00034997,2]
[313153367,1706823051435,-150.0,0.00034999,2]
[313153368,1706823051444,-150.0,0.00034999,2]
[313153369,1706823051454,-150.0,0.00034999,2]
[313153370,1706823051463,-150.0,0.00034999,2]
[313153371,1706823051472,-150.0,0.00034999,2]
[313153372,1706823051482,-150.0,0.00034999,2]
[313153373,1706823051490,-150.0,0.00034999,2]
[313153374,1706823051500,-150.0,0.00034999,2]
[313153375,1706823051509,-50000.0,0.00035,5]
[313153376,1706823051518,-987.93304284,0.00035,3]
[313153377,1706823051527,-155.0,0.00035,2]
[313153378,1706823051536,-3000.0,0.00035,2]
[313153379,1706823051545,-1107.03454363,0.00035,14]
[313153380,1706823051554,-1276.60142788,0.00035,4]
[313153381,1706823051564,-301.32605018,0.00035,4]
[313153382,1706823051573,-450.77981128,0.00035,4]
[313153383,1706823051583,-186.46288161,0.00035,4]
[313153384,1706823051592,-453.27084946,0.00035,4]
[313153385,1706823051602,-15854.99550204,0.00035,7]
[313153386,1706823051611,-3174916.75742216,0.00035,7]
[313153387,1706823051620,-271.95925409,0.00035,120]
[313153388,1706823051640,-174.60519516,0.00035,2]
[313153389,1706823051649,-204771.46357612,0.00035,4]
[313153390,1706823051659,-3900.0,0.00035,7]
[313153391,1706823051668,-277.9432771,0.00035,2]
[313153392,1706823051678,-236.88942733,0.00035,2]
[313153393,1706823051688,-3000.0,0.00035,11]
[313153394,1706823051698,-1212.72260422,0.00035,2]
[313153395,1706823051707,-1212.72260422,0.00035,2]
[313153396,1706823051717,-1018.31460781,0.00035,2]
[313153397,1706823051728,-1018.31460781,0.00035,2]
[313153398,1706823051738,-1500.0,0.00035,3]
[313153399,1706823051747,-55261.77180975,0.00035,2]
[313153400,1706823051757,-55261.77180975,0.00035,2]
[313153401,1706823051768,-55261.77180975,0.00035,2]
[313153402,1706823051778,-450.0,0.00035,3]
[313153403,1706823051788,-1000.0,0.00035,2]
[313153404,1706823051797,-150.1,0.0003501,2]
[313153405,1706823051807,-3000.0,0.0003501,11]
[313153406,1706823051816,-5528.083231,0.0003502,11]
[313153407,1706823051826,-47787.08656396,0.0003509,2]
[313153408,1706823051835,-2793.28,0.000352,3]
[313153409,1706823051845,-2793.28,0.000352,3]
[313153410,1706823051854,-2793.28,0.000352,3]
[313153411,1706823051864,-2793.28,0.000352,3]
[313153412,1706823051874,-2793.28,0.000352,3]
[313153413,1706823051883,-2793.28,0.000352,3]
[313153414,1706823051893,-2793.28,0.000352,3]
[313153415,1706823051903,-2793.28,0.000352,3]
[313153416,1706823051913,-2793.28,0.000352,3]
[313153417,1706823051923,-2793.28,0.000352,3]
[313153418,1706823051933,-2793.28,0.000352,3]
[313153419,1706823051945,-2793.28,0.000352,3]
[313153420,1706823051954,-2793.28,0.000352,3]
[313153421,1706823051963,-2793.28,0.000352,3]
[313153422,1706823051974,-2793.28,0.000352,3]
[313153423,1706823051983,-2793.28,0.000352,3]
[313153424,1706823051992,-2793.28,0.000352,3]
[313153425,1706823052001,-2793.28,0.000352,3]
[313153426,1706823052011,-2793.28,0.000352,3]
[313153427,1706823052020,-2793.28,0.000352,3]
[313153428,1706823052030,-153.85,0.000352,3]